fUST/lending_fUST_20240220
["ID","MTS","AMOUNT","RATE_DAILY","PERIOD"]
[314515238,1708391449301,-2961.61,0.00022191,2]
[314515239,1708391449310,-500.0,0.00022191,2]
[314515240,1708391449319,-500.0,0.00022191,2]
[314515241,1708391449328,-500.0,0.00022191,2]
[314515242,1708391449337,-500.0,0.00022191,2]
[314515243,1708391449346,-985.16,0.00022191,2]
[314515244,1708391449355,-3142.50310703,0.00022191,2]
[314515245,1708391449367,-1193.00689297,0.00022191,2]
[314515246,1708391449376,-500.0,0.00022191,2]
[314515247,1708391449385,-328.55692116,0.00022191,2]
[314515248,1708391449401,-171.44307884,0.00022191,2]
[314515249,1708391449410,-3025.53,0.00022191,2]
[314515250,1708391449419,-500.0,0.00022191,2]
[314515251,1708391449428,-500.0,0.00022191,2]
[314515252,1708391449437,-644.6101374,0.00022191,2]
[314515253,1708391449446,-500.0,0.00022191,2]
[314515254,1708391449455,-500.0,0.00022191,2]
[314515255,1708391449465,-500.0,0.00022191,2]
[314515256,1708391449474,-500.0,0.00022191,2]
[314515257,1708391449483,-1597.85760991,0.00022191,2]
[314515258,1708391449819,-313.11416557,0.00021916,2]
[314515259,1708391449832,-378.0863914,0.00021916,2]
[314515260,1708391449841,-125.63328784,0.00021917,2]
[314515261,1708391479520,-363.31408654,0.00021915,2]
[314515262,1708391479548,-1599.49012682,0.00021915,2]
[314515263,1708391479574,-437.19578664,0.00021917,2]
[314515337,1708392638371,-291.9,0.00020029,2]
[314515338,1708392638382,-633.52983751,0.00020029,2]
[314515339,1708392638392,-1599.49012682,0.00020029,2]
[314515340,1708392638402,-361.53725929,0.0002003,2]
[314515341,1708392638411,-286.919043,0.00020256,2]
[314515342,1708392638421,-168.99355207,0.00020271,2]
[314515343,1708392638431,-3012.97963176,0.0002028,2]
[314515344,1708392638442,-16237.56443276,0.0002028,2]
[314515345,1708392638455,-1950.5936082,0.0002028,2]
[314515391,1708392642111,-779.04953872,0.0002028,2]
[314515394,1708392642123,-2919.81278856,0.0002028,2]
[314515395,1708392642132,-1170.12610873,0.00021333,2]
[314515396,1708392642142,-199.07018883,0.00021817,2]
[314515397,1708392642151,-199.07018881,0.00021904,2]
[314515398,1708392642160,-750.0,0.00021907,3]
[314515399,1708392642169,-7617.31221251,0.00021907,3]
[314515419,1708392643506,-1598.36,0.00021907,3]
[314515420,1708392643518,-3608.66,0.00021907,3]
[314515439,1708392646465,-2708.73778749,0.00021907,3]
[314515440,1708392646474,-12944.22,0.00021907,3]
[314515441,1708392646484,-10598.06307635,0.00021907,3]
[314515442,1708392646495,-188.78692365,0.00021907,3]
[314515444,1708392646504,-589.76844283,0.00021907,3]
[314515445,1708393283060,-500.0,0.00026,30]
[314515498,1708393832524,-462.228,0.00019782,2]
[314515499,1708393832536,-1137.33227522,0.00019782,2]
[314515500,1708393832545,-133.44306009,0.00019783,2]
[314515523,1708393838535,-1627.3130124,0.00019783,2]
[314515524,1708393838545,-691.28360194,0.00019784,2]
[314515525,1708393838555,-244.12643757,0.00019807,2]
[314515526,1708393838565,-286.919043,0.00020083,2]
[314515527,1708393838575,-24900.0,0.0002032,2]
[314515528,1708393838584,-8301.93623162,0.00021817,2]
[314515529,1708393838594,-10401.87251996,0.00021817,2]
[314515572,1708393843701,-259.11776058,0.00021817,2]
[314515579,1708393843764,-3299.14998048,0.00021817,2]
[314515852,1708393846496,-576.20798546,0.00021817,2]
[314515855,1708393846518,-0.34130609,0.00021817,2]
[314515857,1708393846530,-3202.08671972,0.00021817,2]
[314515859,1708393846539,-204.09407069,0.00021817,2]
[314515861,1708393846548,-6656.76,0.00021886,3]
[314515863,1708393846558,-9684.43,0.00021896,3]
[314515866,1708393846568,-153.0,0.000219,2]
[314515867,1708393846576,-200.3836121,0.000219,2]
[314515869,1708393846586,-200.1652682,0.000219,2]
[314515871,1708393846595,-417.78,0.00021906,3]
[314515873,1708393846604,-208.89,0.00021906,3]
[314515876,1708393846614,-11621.31,0.00021906,3]
[314515877,1708393846623,-626.69,0.00021907,3]
[314515879,1708393846632,-8070.36,0.00021907,3]
[314515882,1708393846642,-524.609802,0.00021915,2]
[314515883,1708393846651,-155.27306733,0.00021915,2]
[314515886,1708393846660,-1298.87801659,0.00021915,2]
[314515888,1708393846669,-405.91780222,0.00021915,2]
[314515890,1708393846685,-200.0,0.00021916,2]
[314515892,1708393846694,-232.05777378,0.00021916,2]
[314515894,1708393846703,-153.17101367,0.00021916,2]
[314515896,1708393846712,-500.0,0.00021916,2]
[314515898,1708393846722,-600.0,0.00021916,2]
[314515900,1708393846731,-500.0,0.00021916,2]
[314515901,1708393846740,-500.0,0.00021916,2]
[314515903,1708393846749,-500.0,0.00021916,2]
[314515904,1708393846758,-500.0,0.00021916,2]
[314515906,1708393846767,-500.0,0.00021916,2]
[314515908,1708393846776,-227.3776122,0.00021916,2]
[314515910,1708393846785,-500.0,0.00021916,2]
[314515911,1708393846796,-456.7463821,0.00021916,2]
[314515969,1708393976148,151.13148439,0.00024176,120]
[314515970,1708394447208,151.13450971,0.00024299,120]
[314515971,1708394543690,2036.0,0.00033,120]
[314515972,1708394544664,1213.17667583,0.00033,120]
[314515973,1708394558777,1489.66857201,0.00033,120]
[314515974,1708394569402,1213.17667583,0.00033,120]
[314515975,1708394586522,1213.17667583,0.00033,120]
[314515976,1708394598142,1334.49434341,0.00033,120]
[314515977,1708394610490,1334.49434341,0.00033,120]
[314515978,1708394622919,1334.52105707,0.00033,120]
[314515979,1708394634321,1213.20096098,0.00033,120]
[314515980,1708394643481,1213.20096098,0.00033,120]
[314515982,1708394859169,7500.0,0.00033,120]
[314516044,1708395032786,-240.07615065,0.00019741,2]
[314516047,1708395032797,-273.64532949,0.00019742,2]
[314516050,1708395032807,-155.13807288,0.00019742,2]
[314516052,1708395032817,-1599.56027522,0.00019743,2]
[314516054,1708395032827,-1760.75607249,0.00019744,2]
[314516056,1708395032836,-387.832021,0.00019759,2]
[314516058,1708395032846,-1939.3188003,0.00019844,2]
[314516060,1708395032856,-259.0,0.0001988,2]
[314516062,1708395032866,-14552.7017214,0.00019881,2]
[314516064,1708395032875,-171.7204933,0.00020371,2]
[314516066,1708395032885,-353.78205455,0.00021,2]
[314516068,1708395032894,-4150.53216917,0.00021178,2]
[314516070,1708395032904,-200.3472215,0.00021178,2]
[314516071,1708395032914,-153.9638723,0.00021178,2]
[314516072,1708395032927,-930.08295685,0.0002128,2]
[314516073,1708395032937,-2546.16,0.00021517,4]
[314516074,1708395032947,-2161.9197096,0.00021817,2]
[314516075,1708395032957,-26377.63393529,0.00021817,2]
[314516076,1708395032967,-3364.76731206,0.00021817,2]
[314516077,1708395032976,-299.75686762,0.00021817,2]
[314516078,1708395032986,-657.83290439,0.00021896,3]
[314516079,1708395032998,-1014.1073078,0.00021896,3]
[314516215,1708395038685,-2591.38978781,0.00021896,3]
[314516217,1708395038695,-479.184806,0.000219,2]
[314516219,1708395038703,-273.3015673,0.000219,2]
[314516221,1708395038712,-5116.0,0.00021905,3]
[314516222,1708395038721,-3516.57,0.00021906,3]
[314516224,1708395038732,-6139.2,0.00021906,3]
[314516226,1708395038742,-435.53,0.00021907,3]
[314516228,1708395038751,-217.77,0.00021907,3]
[314516230,1708395038760,-11.01482837,0.00021916,2]
[314516232,1708395038769,-500.0,0.00021916,2]
[314516234,1708395038778,-372.1657126,0.00021916,2]
[314516236,1708395038787,-500.0,0.00021916,2]
[314516238,1708395038796,-198.9309005,0.00021916,2]
[314516241,1708395038808,-199.60257964,0.00021916,2]
[314516242,1708395038817,-500.0,0.00021916,2]
[314516244,1708395038826,-345.65526131,0.00021916,2]
[314516245,1708395038835,-500.0,0.00021916,2]
[314516246,1708395038846,-468.39040281,0.00021916,2]
[314516247,1708395038862,-31.60959719,0.00021916,2]
[314516249,1708395038872,-500.0,0.00021916,2]
[314516251,1708395038881,-315.20644567,0.00021916,2]
[314516274,1708395039082,-500.0,0.00021916,2]
[314516276,1708395039093,-500.0,0.00021916,2]
[314516278,1708395039103,-500.0,0.00021916,2]
[314516279,1708395039112,-500.0,0.00021916,2]
[314516281,1708395039122,-500.0,0.00021916,2]
[314516283,1708395039131,-500.0,0.00021916,2]
[314516285,1708395039140,-500.0,0.00021916,2]
[314516287,1708395039149,-648.06535787,0.00021916,2]
[314516289,1708395039158,-500.0,0.00021916,2]
[314516291,1708395039167,-500.0,0.00021916,2]
[314516293,1708395039178,-500.0,0.00021916,2]
[314516295,1708395039187,-500.0,0.00021916,2]
[314516297,1708395039196,-500.0,0.00021916,2]
[314516299,1708395039206,-500.0,0.00021916,2]
[314516301,1708395039214,-500.0,0.00021916,2]
[314516303,1708395039223,-500.0,0.00021916,2]
[314516305,1708395039233,-500.0,0.00021916,2]
[314516307,1708395039243,-441.79886029,0.00021916,2]
[314516309,1708395039252,-500.0,0.00021916,2]
[314516311,1708395039261,-500.0,0.00021916,2]
[314516313,1708395039271,-500.0,0.00021916,2]
[314516315,1708395039280,-500.0,0.00021916,2]
[314516317,1708395039290,-500.0,0.00021916,2]
[314516320,1708395039299,-350.85043781,0.00021916,2]
[314516321,1708395039309,-499.99999999,0.00021916,2]
[314516323,1708395039319,-500.0,0.00021917,2]
[314516325,1708395039328,-578.01631437,0.00021917,2]
[314516327,1708395039338,-500.0,0.00021917,2]
[314516329,1708395039347,-500.0,0.00021917,2]
[314516331,1708395039357,-500.0,0.00021917,2]
[314516333,1708395039366,-500.0,0.00021917,2]
[314516335,1708395039375,-500.0,0.00021917,2]
[314516337,1708395039384,-366.74895436,0.00021917,2]
[314516340,1708395039394,-500.0,0.00021917,2]
[314516341,1708395039403,-500.0,0.00021917,2]
[314516343,1708395039412,-500.0,0.00021917,2]
[314516345,1708395039422,-500.0,0.00021917,2]
[314516347,1708395039430,-500.0,0.00021917,2]
[314516349,1708395039440,-500.0,0.00021917,2]
[314516351,1708395039448,-500.0,0.00021917,2]
[314516353,1708395039457,-500.0,0.00021917,2]
[314516355,1708395039466,-1000.0,0.00021917,2]
[314516357,1708395039476,-523.96663755,0.00021917,2]
[314516359,1708395039485,-150.75996782,0.00021917,2]
[314516361,1708395039493,-500.0,0.00021917,2]
[314516363,1708395039503,-587.01,0.00021917,2]
[314516365,1708395039512,-500.0,0.00021917,2]
[314516367,1708395039521,-500.0,0.00021917,2]
[314516369,1708395039531,-520.83383471,0.00021917,2]
[314516371,1708395039540,-580.0,0.00021917,2]
[314516373,1708395039549,-500.0,0.00021917,2]
[314516375,1708395039560,-500.0,0.00021917,2]
[314516377,1708395039569,-500.0,0.00021917,2]
[314516379,1708395039579,-500.0,0.00021917,2]
[314516381,1708395039588,-500.0,0.00021917,2]
[314516382,1708395039599,-500.0,0.00021917,2]
[314516383,1708395039609,-500.0,0.00021917,2]
[314516384,1708395039619,-583.69,0.00021917,2]
[314516385,1708395039634,-500.0,0.00021917,2]
[314516386,1708395039643,-500.0,0.00021917,2]
[314516387,1708395039653,-500.0,0.00021917,2]
[314516388,1708395039663,-500.0,0.00021917,2]
[314516389,1708395039678,-500.0,0.00021917,2]
[314516390,1708395039688,-143.36217588,0.00021917,2]
[314516391,1708395039702,-356.63782412,0.00021917,2]
[314516392,1708395039713,-502.04550861,0.00021917,2]
[314516393,1708395039724,-500.0,0.00021917,2]
[314516394,1708395039734,-581.12,0.00021917,2]
[314516395,1708395039743,-500.0,0.00021917,2]
[314516396,1708395039753,-500.0,0.00021917,2]
[314516398,1708395039763,-334.10994639,0.00021917,2]
[314516510,1708395043701,-261.63646538,0.00021816,2]
[314516511,1708395043710,-306.93791687,0.00021907,3]
[314516526,1708395046725,-759.04666714,0.00021907,3]
[314516549,1708395365120,3003.39,0.00033,120]
[314516550,1708395651422,-151.13299704,0.00024946,30]
[314516551,1708395667551,-348.86700296,0.00026,30]
[314516552,1708395689246,552.47815555,0.00033,120]
[314516600,1708396194678,1478.95964941,0.00032657,120]
[314516732,1708396240959,-273.64532949,0.00018315,2]
[314516733,1708396240969,-525.6627545,0.00018316,2]
[314516734,1708396240978,-155.13807288,0.0001838,2]
[314516735,1708396240988,-1599.56027522,0.00018381,2]
[314516736,1708396240997,-200.06345888,0.00018381,2]
[314516737,1708396241006,-155.13807288,0.00018381,2]
[314516738,1708396241015,-73.21122568,0.00018392,2]
[314516745,1708396242966,-213.59747732,0.00018392,2]
[314516746,1708396242976,-24900.0,0.00018392,2]
[314516747,1708396242986,-21806.34836564,0.00019062,2]
[314516755,1708396246034,-3411.85404176,0.00019062,2]
[314516756,1708396246044,-8587.7755236,0.00019203,2]
[314516757,1708396246053,-1187.65607249,0.00019499,2]
[314516758,1708396246063,-155.13807288,0.00019804,2]
[314516759,1708396246072,-898.18429683,0.00019817,2]
[314516760,1708396246082,-156.03668152,0.00020574,2]
[314516761,1708396246091,-3028.2905808,0.00021817,2]
[314516762,1708396246101,-810.3098751,0.00021817,2]
[314516763,1708396246111,-2665.44,0.00021846,3]
[314516764,1708396246121,-261.63646538,0.00021891,2]
[314516765,1708396246130,-326.65,0.00021907,3]
[314516766,1708396246140,-163.32,0.00021907,3]
[314516767,1708396246149,-490.01,0.00021907,3]
[314516768,1708396246158,-238.09546216,0.00021916,2]
[314516769,1708396246167,-269.92748986,0.00021916,2]
[314516770,1708396246177,-535.42937398,0.00021916,2]
[314516771,1708396246187,-159.52478304,0.00021917,2]
[314516772,1708396246196,-500.0,0.00021917,2]
[314516773,1708396246206,-500.0,0.00021917,2]
[314516774,1708396246215,-500.0,0.00021917,2]
[314516775,1708396246225,-567.5781503,0.00021917,2]
[314516776,1708396246234,-500.0,0.00021917,2]
[314516777,1708396246243,-500.0,0.00021917,2]
[314516778,1708396246253,-500.0,0.00021917,2]
[314516779,1708396246262,-500.0,0.00021917,2]
[314516780,1708396246271,-500.0,0.00021917,2]
[314516781,1708396246281,-500.0,0.00021917,2]
[314516782,1708396246290,-659.9,0.00021917,2]
[314516783,1708396246300,-1252.2,0.00021917,2]
[314516784,1708396246309,-500.0,0.00021917,2]
[314516785,1708396246319,-500.0,0.00021917,2]
[314516786,1708396246329,-500.0,0.00021917,2]
[314516787,1708396246338,-500.0,0.00021917,2]
[314516788,1708396246347,-500.0,0.00021917,2]
[314516789,1708396246357,-500.0,0.00021917,2]
[314516790,1708396246367,-583.44795392,0.00021917,2]
[314516791,1708396246376,-580.15,0.00021917,2]
[314516792,1708396246385,-505.76,0.00021917,2]
[314516793,1708396246394,-500.0,0.00021917,2]
[314516794,1708396246404,-500.0,0.00021917,2]
[314516795,1708396246413,-500.0,0.00021917,2]
[314516796,1708396246422,-500.0,0.00021917,2]
[314516797,1708396246432,-500.0,0.00021917,2]
[314516798,1708396246442,-500.0,0.00021917,2]
[314516799,1708396246451,-500.0,0.00021917,2]
[314516800,1708396246460,-500.0,0.00021917,2]
[314516801,1708396246470,-500.0,0.00021917,2]
[314516802,1708396246479,-773.87,0.00021917,2]
[314516803,1708396246488,-500.0,0.00021917,2]
[314516804,1708396246497,-213.49440558,0.00021917,2]
[314516805,1708396246506,-500.0,0.00021917,2]
[314516806,1708396246515,-318.37779863,0.00021917,2]
[314516807,1708396246524,-500.0,0.00021917,2]
[314516808,1708396246532,-500.0,0.00021917,2]
[314516809,1708396246541,-500.0,0.00021917,2]
[314516810,1708396246550,-786.37,0.00021917,2]
[314516811,1708396246559,-688.73,0.00021917,2]
[314516812,1708396246568,-500.0,0.00021917,2]
[314516813,1708396246577,-500.0,0.00021917,2]
[314516814,1708396246587,-500.0,0.00021917,2]
[314516815,1708396246596,-500.0,0.00021917,2]
[314516816,1708396246605,-500.0,0.00021917,2]
[314516817,1708396246614,-500.0,0.00021917,2]
[314516818,1708396246623,-500.0,0.00021917,2]
[314516819,1708396246632,-500.0,0.00021917,2]
[314516820,1708396246641,-500.0,0.00021917,2]
[314516821,1708396246650,-500.0,0.00021917,2]
[314516822,1708396246660,-500.0,0.00021917,2]
[314516823,1708396246669,-2661.5,0.00021917,2]
[314516824,1708396246678,-247.49645724,0.00021917,2]
[314516825,1708396246687,-500.0,0.00021917,2]
[314516826,1708396246697,-500.0,0.00021917,2]
[314516827,1708396246706,-500.0,0.00021917,2]
[314516828,1708396246715,-579.6732596,0.00021917,2]
[314516829,1708396246724,-500.0,0.00021917,2]
[314516830,1708396246732,-500.0,0.00021917,2]
[314516831,1708396246742,-1135.09,0.00021917,2]
[314516832,1708396246751,-500.0,0.00021917,2]
[314516833,1708396246760,-500.0,0.00021917,2]
[314516834,1708396246769,-500.0,0.00021917,2]
[314516835,1708396246778,-781.73,0.00021917,2]
[314516836,1708396246787,-500.0,0.00021917,2]
[314516837,1708396246797,-513.4,0.00021917,2]
[314516838,1708396246806,-500.0,0.00021917,2]
[314516839,1708396246815,-500.0,0.00021917,2]
[314516840,1708396246824,-500.0,0.00021917,2]
[314516841,1708396246833,-500.0,0.00021917,2]
[314516842,1708396246842,-500.0,0.00021917,2]
[314516843,1708396246852,-342.45493069,0.00021917,2]
[314516844,1708396539709,151.13450971,0.00023947,120]
[314516845,1708396772706,151.13450971,0.00024001,120]
[314516846,1708397034967,151.13299704,0.00024127,120]
[314516875,1708397432080,-1599.56027522,0.00019525,2]
[314516876,1708397432090,-273.64532949,0.00019526,2]
[314516877,1708397432099,-200.06345888,0.00019526,2]
[314516878,1708397432108,-7998.64459128,0.00019527,2]
[314516879,1708397432121,-1239.75607249,0.00019528,2]
[314516880,1708397432130,-259.0,0.00019534,2]
[314516881,1708397432139,-171.060954,0.00019575,2]
[314516882,1708397432148,-598.78953122,0.00019817,2]
[314516883,1708397432157,-286.808703,0.00019888,2]
[314516885,1708397432167,-870.50976958,0.00021227,2]
[314516888,1708397432176,-153.96893401,0.00021717,2]
[314516889,1708397432186,-738.55,0.000218,2]
[314516890,1708397432195,-17495.25662717,0.00021817,2]
[314516891,1708397432204,-2909.96088791,0.00021817,2]
[314516892,1708397432213,-359.70824114,0.00021817,2]
[314516893,1708397432223,-2135.32,0.00021906,3]
[314516894,1708397432232,-2827.71,0.00021906,3]
[314516895,1708397432240,-449.41,0.00021907,3]
[314516896,1708397432249,-224.7,0.00021907,3]
[314516897,1708397432258,-674.14,0.00021907,3]
[314516898,1708397432267,-4071.91,0.00021907,3]
[314516899,1708397432276,-3393.26,0.00021907,3]
[314516900,1708397432285,-155.33214341,0.00021915,2]
[314516901,1708397432294,-500.0,0.00021916,2]
[314516902,1708397432303,-500.0,0.00021916,2]
[314516903,1708397432314,-500.0,0.00021916,2]
[314516904,1708397432323,-500.0,0.00021916,2]
[314516905,1708397432334,-397.49142812,0.00021916,2]
[314516906,1708397432343,-500.0,0.00021916,2]
[314516907,1708397432353,-500.0,0.00021916,2]
[314516908,1708397432363,-500.0,0.00021916,2]
[314516909,1708397432372,-281.41930463,0.00021916,2]
[314516910,1708397432386,-500.0,0.00021916,2]
[314516911,1708397432395,-500.0,0.00021916,2]
[314516912,1708397432404,-500.0,0.00021916,2]
[314516913,1708397432414,-500.0,0.00021916,2]
[314516914,1708397432425,-500.0,0.00021916,2]
[314516915,1708397432434,-420.60383771,0.00021916,2]
[314516916,1708397432443,-500.0,0.00021916,2]
[314516917,1708397432453,-500.0,0.00021916,2]
[314516918,1708397432465,-500.0,0.00021916,2]
[314516919,1708397432475,-500.0,0.00021916,2]
[314516920,1708397432484,-500.0,0.00021916,2]
[314516921,1708397432494,-500.0,0.00021916,2]
[314516922,1708397432503,-500.0,0.00021916,2]
[314516923,1708397432512,-500.0,0.00021916,2]
[314516924,1708397432521,-500.0,0.00021916,2]
[314516925,1708397432531,-500.0,0.00021916,2]
[314516926,1708397432540,-500.0,0.00021916,2]
[314516927,1708397432549,-500.0,0.00021916,2]
[314516928,1708397432559,-500.0,0.00021916,2]
[314516929,1708397432568,-500.0,0.00021916,2]
[314516930,1708397432577,-500.0,0.00021916,2]
[314516931,1708397432586,-500.0,0.00021916,2]
[314516932,1708397432595,-500.0,0.00021916,2]
[314516933,1708397432605,-500.0,0.00021916,2]
[314516934,1708397432614,-500.0,0.00021916,2]
[314516935,1708397432623,-500.0,0.00021916,2]
[314516936,1708397432632,-500.0,0.00021916,2]
[314516937,1708397432642,-500.0,0.00021916,2]
[314516938,1708397432651,-500.0,0.00021916,2]
[314516939,1708397432660,-481.63177509,0.00021916,2]
[314516940,1708397432669,-500.0,0.00021916,2]
[314516941,1708397432678,-500.0,0.00021916,2]
[314516942,1708397432687,-500.0,0.00021916,2]
[314516943,1708397432696,-500.0,0.00021916,2]
[314516944,1708397432705,-500.0,0.00021916,2]
[314516945,1708397432715,-500.0,0.00021916,2]
[314516946,1708397432724,-229.03742571,0.00021916,2]
[314516947,1708397432734,-499.99999999,0.00021916,2]
[314516948,1708397432743,-1517.39567223,0.00021916,2]
[314516949,1708397432752,-500.0,0.00021917,2]
[314516950,1708397432762,-500.0,0.00021917,2]
[314516951,1708397432772,-500.0,0.00021917,2]
[314516952,1708397432781,-500.0,0.00021917,2]
[314516953,1708397432791,-2350.47505774,0.00021917,2]
[314516954,1708397432804,-541.34116162,0.00021917,2]
[314516968,1708397438144,-155.13807288,0.00019524,2]
[314516970,1708397438154,-200.06345888,0.00019524,2]
[314516971,1708397438164,-3277.81378064,0.00021917,2]
[314516972,1708397438177,-500.0,0.00021917,2]
[314516974,1708397438186,-500.0,0.00021917,2]
[314516975,1708397438195,-500.0,0.00021917,2]
[314516976,1708397438205,-500.0,0.00021917,2]
[314516978,1708397438214,-504.02428155,0.00021917,2]
[314516979,1708397438223,-502.76370371,0.00021917,2]
[314516980,1708397438232,-1351.11,0.00021917,2]
[314516981,1708397438241,-500.0,0.00021917,2]
[314516982,1708397438250,-500.0,0.00021917,2]
[314516983,1708397438259,-500.0,0.00021917,2]
[314516984,1708397438269,-500.0,0.00021917,2]
[314516985,1708397438279,-451.16725055,0.00021917,2]
[314516986,1708397438289,-264.00916626,0.00021917,2]
[314516987,1708397438298,-500.0,0.00021917,2]
[314516988,1708397438307,-500.0,0.00021917,2]
[314516989,1708397438316,-500.0,0.00021917,2]
[314516990,1708397438326,-500.0,0.00021917,2]
[314516991,1708397438335,-500.0,0.00021917,2]
[314516992,1708397438345,-727.73,0.00021917,2]
[314516993,1708397438354,-500.0,0.00021917,2]
[314516994,1708397438364,-500.0,0.00021917,2]
[314516995,1708397438374,-591.28690162,0.00021917,2]
[314516996,1708397438383,-500.0,0.00021917,2]
[314516997,1708397438397,-500.0,0.00021917,2]
[314516998,1708397438406,-500.0,0.00021917,2]
[314516999,1708397438415,-500.0,0.00021917,2]
[314517000,1708397438429,-500.0,0.00021917,2]
[314517001,1708397438438,-234.32790492,0.00021917,2]
[314517002,1708397438447,-505.74636737,0.00021917,2]
[314517003,1708397438457,-510.64531421,0.00021917,2]
[314517004,1708397438466,-500.0,0.00021917,2]
[314517005,1708397438475,-500.0,0.00021917,2]
[314517006,1708397438485,-224.01204705,0.00021917,2]
[314517007,1708397438494,-500.0,0.00021917,2]
[314517008,1708397438503,-152.04394,0.00021917,2]
[314517009,1708397438513,-1177.17,0.00021917,2]
[314517010,1708397438523,-500.0,0.00021917,2]
[314517011,1708397438532,-500.0,0.00021917,2]
[314517012,1708397438541,-500.0,0.00021917,2]
[314517013,1708397438550,-648.93143026,0.00021917,2]
[314517014,1708397438561,-500.0,0.00021917,2]
[314517015,1708397438570,-500.0,0.00021917,2]
[314517016,1708397438579,-500.0,0.00021917,2]
[314517017,1708397438588,-500.0,0.00021917,2]
[314517018,1708397438597,-200.0,0.00021917,2]
[314517019,1708397438607,-500.0,0.00021917,2]
[314517020,1708397438616,-408.01181932,0.00021917,2]
[314517021,1708397438625,-500.0,0.00021917,2]
[314517022,1708397438796,-764.16,0.00021917,2]
[314517023,1708397438805,-225.36992675,0.00021917,2]
[314517024,1708397438814,-500.0,0.00021917,2]
[314517025,1708397438823,-500.0,0.00021917,2]
[314517026,1708397438832,-500.0,0.00021917,2]
[314517027,1708397438841,-500.0,0.00021917,2]
[314517028,1708397438852,-500.0,0.00021917,2]
[314517029,1708397438861,-500.0,0.00021917,2]
[314517030,1708397438870,-500.0,0.00021917,2]
[314517031,1708397438879,-500.0,0.00021917,2]
[314517032,1708397438889,-500.0,0.00021917,2]
[314517033,1708397438897,-500.0,0.00021917,2]
[314517034,1708397438907,-396.59778107,0.00021917,2]
[314517035,1708397438918,-302.50753418,0.00021917,2]
[314517036,1708397438927,-667.39,0.00021917,2]
[314517037,1708397438936,-873.94,0.00021917,2]
[314517038,1708397438945,-500.0,0.00021917,2]
[314517039,1708397438954,-500.0,0.00021917,2]
[314517040,1708397438963,-500.0,0.00021917,2]
[314517041,1708397438972,-500.0,0.00021917,2]
[314517042,1708397438982,-500.0,0.00021917,2]
[314517043,1708397438992,-509.97496009,0.00021917,2]
[314517044,1708397439001,-595.59994138,0.00021917,2]
[314517045,1708397439010,-151.0,0.00021917,2]
[314517046,1708397439019,-500.0,0.00021917,2]
[314517047,1708397439028,-1411.57,0.00021917,2]
[314517048,1708397439038,-500.0,0.00021917,2]
[314517049,1708397439047,-500.0,0.00021917,2]
[314517050,1708397439056,-645.67,0.00021917,2]
[314517051,1708397439065,-500.0,0.00021917,2]
[314517052,1708397439074,-500.0,0.00021917,2]
[314517053,1708397439083,-500.0,0.00021917,2]
[314517054,1708397439092,-500.0,0.00021917,2]
[314517055,1708397439101,-502.21925771,0.00021917,2]
[314517056,1708397439111,-500.0,0.00021917,2]
[314517057,1708397439120,-500.0,0.00021917,2]
[314517058,1708397439129,-500.0,0.00021917,2]
[314517059,1708397439137,-500.0,0.00021917,2]
[314517060,1708397439147,-500.0,0.00021917,2]
[314517061,1708397439156,-625.29764793,0.00021917,2]
[314517062,1708397439165,-500.0,0.00021917,2]
[314517063,1708397439176,-500.0,0.00021917,2]